bitfinex/quotes_BTCUSD_20220731
["timestamp","ask_amount","ask_price","bid_price","bid_amount"]
[1659294457206,0.4773,23909.0,23901.0,0.43986933]
[1659294457425,0.05,23914.0,23902.0,0.70787233]
[1659294457648,0.05,23914.0,23903.0,0.40725733]
[1659294457649,0.048,23906.0,23903.0,0.40725733]
[1659294457887,0.048,23906.0,23903.0,0.053525]
[1659294457888,0.08581925,23906.0,23903.0,0.053525]
[1659294458115,0.08581925,23906.0,23903.0,0.020913]
[1659294458543,0.08581925,23906.0,23903.0,0.188263]
[1659294459001,0.03781925,23906.0,23903.0,0.188263]
[1659294459703,0.09081925,23906.0,23903.0,0.188263]
[1659294460391,0.49807658,23906.0,23903.0,0.188263]
[1659294461040,0.44507658,23906.0,23903.0,0.188263]
[1659294461266,0.40725733,23905.0,23903.0,0.188263]
[1659294461715,0.40725733,23905.0,23903.0,0.020913]
[1659294462430,0.066,23906.0,23903.0,0.02101991]
[1659294462665,0.066,23906.0,23903.0,0.42827724]
[1659294462925,0.051,23921.0,23906.0,0.066]
[1659294463156,7.011e-05,23911.0,23907.0,0.75134125]
[1659294463378,7.011e-05,23911.0,23908.0,0.300615]
[1659294463604,7.011e-05,23911.0,23907.0,0.290543]
[1659294463829,7.011e-05,23911.0,23910.0,0.132612]
[1659294464064,7.011e-05,23911.0,23910.0,0.83039933]
[1659294464301,7.011e-05,23911.0,23910.0,0.423142]
[1659294464790,7.011e-05,23911.0,23908.0,0.020904]
[1659294464791,0.16334474,23911.0,23908.0,0.020904]
[1659294465019,7.011e-05,23911.0,23909.0,0.42859177]
[1659294465249,0.05,23916.0,23910.0,0.05]
[1659294465505,0.40725733,23915.0,23910.0,0.00203624]
[1659294465727,0.01,23911.0,23909.0,0.49959177]
[1659294465953,0.01,23911.0,23910.0,0.300615]
[1659294466181,0.01,23911.0,23909.0,0.49959177]
[1659294466415,0.01,23911.0,23910.0,0.55]
[1659294466634,0.01,23911.0,23910.0,1.41534524]
[1659294466898,0.01,23911.0,23910.0,1.39048433]
[1659294467128,7.06e-05,23913.0,23912.0,0.020904]
[1659294467385,7.06e-05,23913.0,23912.0,0.72164311]
[1659294467613,0.00028235,23917.0,23913.0,7e-05]
[1659294467844,0.00028235,23917.0,23914.0,0.70781733]
[1659294468086,0.001,23921.0,23916.0,1.082612]
[1659294468309,0.001,23921.0,23916.0,1.48986933]
[1659294468533,0.001,23921.0,23916.0,0.132612]
[1659294468756,0.40825733,23921.0,23916.0,0.132612]
[1659294469005,0.40725733,23920.0,23915.0,0.041802]
[1659294469435,0.40725733,23920.0,23915.0,0.020901]
[1659294469664,0.48625733,23920.0,23915.0,0.020901]
[1659294469888,0.40725733,23919.0,23915.0,0.020901]
[1659294470115,0.03781925,23918.0,23915.0,0.02075996]
[1659294470354,0.03781925,23918.0,23916.0,0.00302927]
[1659294470615,0.40725733,23919.0,23915.0,0.02075996]
[1659294471075,0.05,23917.0,23915.0,0.02075996]
[1659294471334,0.05,23917.0,23915.0,0.00376263]
[1659294471335,0.75787233,23917.0,23915.0,0.00376263]
[1659294471557,0.300615,23916.0,23915.0,0.00376263]
[1659294472922,0.45733753,23917.0,23915.0,0.00376263]
[1659294473188,0.300615,23916.0,23915.0,0.00376263]
[1659294473883,0.70787233,23916.0,23915.0,0.00376263]
[1659294474329,0.73787233,23916.0,23915.0,0.00376263]
[1659294475042,0.68787233,23916.0,23915.0,0.00376263]
[1659294475282,0.68787233,23916.0,23910.0,0.020908]
[1659294475283,1.23787233,23916.0,23910.0,0.020908]
[1659294475499,1.23787233,23916.0,23905.0,1.5386]
[1659294475500,0.05,23914.0,23905.0,1.5386]
[1659294475771,0.40725733,23913.0,23907.0,0.020911]
[1659294475986,0.40725733,23913.0,23909.0,8.011e-05]
[1659294476211,0.30058,23912.0,23910.0,0.020911]
[1659294476432,0.70783733,23911.0,23909.0,8.011e-05]
[1659294476653,0.65058,23910.0,23909.0,8.011e-05]
[1659294476897,0.65058,23910.0,23907.0,0.020911]
[1659294477191,0.30058,23909.0,23908.0,0.00204445]
[1659294477414,0.40725733,23911.0,23907.0,0.020914]
[1659294477630,0.40725733,23911.0,23907.0,0.097914]
[1659294478072,0.40725733,23911.0,23908.0,8.01e-05]
[1659294478303,0.30058,23910.0,23908.0,8.01e-05]
[1659294478525,0.40725733,23911.0,23908.0,8.01e-05]
[1659294478526,0.30058,23909.0,23908.0,8.01e-05]
[1659294478751,0.40725733,23911.0,23908.0,8.01e-05]
[1659294478752,0.51184433,23911.0,23908.0,8.01e-05]
[1659294478978,0.33839925,23910.0,23904.0,0.020913]
[1659294479209,0.44507658,23910.0,23904.0,0.020913]
[1659294479425,0.40725733,23910.0,23904.0,0.020913]
[1659294479650,0.48625733,23910.0,23907.0,0.00376167]
[1659294479882,0.40725733,23912.0,23907.0,0.02467667]
[1659294480132,0.30058,23911.0,23907.0,0.02467667]
[1659294480378,0.10008007,23914.0,23907.0,0.02467667]
[1659294480379,8.007e-05,23914.0,23907.0,0.02467667]
[1659294480625,0.40725733,23913.0,23907.0,0.02467667]
[1659294481337,0.40725733,23913.0,23909.0,8.01e-05]
[1659294481554,0.30058,23912.0,23910.0,0.00413121]
[1659294481784,0.40725733,23912.0,23910.0,0.02504221]
[1659294482015,0.30058,23911.0,23910.0,0.02504221]
[1659294482251,0.40725733,23912.0,23910.0,0.02504221]
[1659294482470,0.30058,23911.0,23910.0,0.02504221]
[1659294482954,0.40725733,23912.0,23910.0,0.02504221]
[1659294483188,0.40725733,23912.0,23910.0,0.020911]
[1659294483189,0.30058,23911.0,23910.0,0.020911]
[1659294483420,0.30058,23911.0,23909.0,6.983e-05]
[1659294483421,0.70783733,23911.0,23909.0,6.983e-05]
[1659294483645,0.30058,23910.0,23909.0,0.00104629]
[1659294483890,0.40725733,23911.0,23909.0,0.00104629]
[1659294484099,0.30058,23910.0,23907.0,0.04183]
[1659294484318,0.40725733,23911.0,23907.0,0.020915]
[1659294484537,0.03781925,23910.0,23907.0,0.020915]
[1659294485044,0.40725733,23911.0,23908.0,6.018e-05]
[1659294485735,0.33839925,23910.0,23908.0,0.07906018]
[1659294485976,0.40725733,23909.0,23908.0,0.079]
[1659294486701,0.70783733,23909.0,23903.0,0.020914]
[1659294486931,0.70783733,23909.0,23907.0,6.29e-05]
[1659294486932,1.55783733,23908.0,23907.0,6.29e-05]
[1659294487159,1.55783733,23908.0,23899.0,0.03146014]
[1659294487160,1.9,23907.0,23899.0,0.03146014]
[1659294487408,1.9,23907.0,23890.0,0.0941]
[1659294487409,0.40725733,23904.0,23890.0,0.0941]
[1659294487641,0.40725733,23904.0,23888.0,0.001]
[1659294487642,0.40725733,23898.0,23888.0,0.001]
[1659294487887,0.70783733,23897.0,23888.0,0.001]
[1659294488102,0.60058,23896.0,23888.0,0.001]
[1659294488332,0.30058,23895.0,23888.0,0.001]
[1659294488638,0.30058,23894.0,23888.0,0.45825733]
[1659294488845,0.40725733,23894.0,23888.0,0.033612]
[1659294489081,0.40725733,23897.0,23889.0,0.45725733]
[1659294489301,0.40725733,23897.0,23892.0,0.05]
[1659294489552,0.40725733,23897.0,23892.0,0.082612]
[1659294489772,1.2364,23903.0,23893.0,0.05]
[1659294489773,0.40725733,23896.0,23893.0,0.05]
[1659294489993,0.45725733,23896.0,23888.0,0.001]
[1659294490211,0.40725733,23895.0,23888.0,0.001]
[1659294490469,0.40725733,23895.0,23888.0,0.033612]
[1659294490944,0.40725733,23894.0,23890.0,7.152e-05]
[1659294491192,0.33839925,23893.0,23890.0,7.152e-05]
[1659294491447,0.70783733,23892.0,23890.0,7.152e-05]
[1659294491675,0.03781925,23893.0,23890.0,7.152e-05]
[1659294491676,0.40725733,23893.0,23890.0,7.152e-05]
[1659294492145,0.40725733,23893.0,23889.0,0.091853]
[1659294492412,1.1864,23903.0,23898.0,0.132612]
[1659294492413,0.1,23903.0,23898.0,0.132612]
[1659294492626,0.25,23913.0,23898.0,0.132612]
[1659294492627,1.7743,23923.0,23907.0,0.4662636]
[1659294492861,1.7743,23923.0,23908.0,0.30783026]
[1659294492862,0.40725733,23918.0,23908.0,0.30783026]
[1659294493113,0.40725733,23918.0,23907.0,0.45725733]
[1659294493340,7.072e-05,23911.0,23908.0,0.30058]
[1659294493573,7.072e-05,23911.0,23907.0,0.40725733]
[1659294493791,0.03781925,23910.0,23908.0,0.067]
[1659294494018,7.072e-05,23911.0,23908.0,0.067]
[1659294494302,0.019,23918.0,23908.0,0.067]
[1659294494303,0.40725733,23910.0,23908.0,0.067]
[1659294494516,0.70058,23909.0,23908.0,0.067]
[1659294494743,1.14565658,23909.0,23908.0,0.067]
[1659294495006,1.14565658,23909.0,23906.0,7.077e-05]
[1659294495209,0.70783733,23908.0,23906.0,7.077e-05]
[1659294495434,0.43781925,23909.0,23906.0,7.077e-05]
[1659294495435,1.45783733,23907.0,23906.0,7.077e-05]
[1659294495661,0.70783733,23907.0,23906.0,7.077e-05]
[1659294496125,1.05,23906.0,23897.0,0.032612]
[1659294496412,0.40725733,23902.0,23892.0,0.020918]
[1659294496632,0.30058,23901.0,23892.0,0.020918]
[1659294496867,0.70783733,23900.0,23892.0,0.020918]
[1659294497091,0.40725733,23899.0,23890.0,0.3087]
[1659294497324,0.50725733,23899.0,23890.0,0.40725733]
[1659294497597,0.50725733,23899.0,23890.0,0.032612]
[1659294497598,0.40725733,23898.0,23890.0,0.032612]
[1659294497840,0.40725733,23898.0,23888.0,0.021926]
[1659294497841,0.40725733,23896.0,23888.0,0.021926]
[1659294498069,0.40725733,23896.0,23888.0,0.001]
[1659294498070,0.40725733,23893.0,23888.0,0.001]
[1659294498294,0.70783733,23892.0,23888.0,0.001]
[1659294498510,0.74565658,23891.0,23888.0,0.001]
[1659294498749,0.70783733,23890.0,23888.0,0.001]
[1659294498962,0.70783733,23889.0,23888.0,0.001]
[1659294499407,0.40725733,23890.0,23888.0,0.001]
[1659294500100,0.30058,23889.0,23888.0,0.00462602]
[1659294500329,0.30058,23889.0,23888.0,0.00470627]
[1659294500330,0.40725733,23889.0,23888.0,0.00470627]
[1659294501027,0.40725733,23890.0,23888.0,0.00470627]
[1659294501270,0.40725733,23891.0,23888.0,0.0258767]
[1659294501812,0.311,23905.0,23890.0,0.182612]
[1659294502081,0.40725733,23902.0,23892.0,0.05]
[1659294502310,0.40725733,23902.0,23893.0,0.45965733]
[1659294503019,0.40725733,23902.0,23893.0,0.42817733]
[1659294503706,0.46125733,23902.0,23894.0,0.03148]
[1659294503928,0.40725733,23901.0,23896.0,8.024e-05]
[1659294504200,0.300713,23900.0,23896.0,8.024e-05]
[1659294504414,1.20725733,23901.0,23897.0,0.00032154]
[1659294504655,0.300713,23900.0,23896.0,8.024e-05]
[1659294504881,0.300713,23899.0,23896.0,8.024e-05]
[1659294505122,0.40725733,23899.0,23895.0,0.020922]
[1659294505366,0.40725733,23899.0,23895.0,0.070922]
[1659294505616,0.40725733,23899.0,23896.0,8.024e-05]
[1659294505857,0.46725733,23899.0,23896.0,8.024e-05]
[1659294506308,0.40725733,23898.0,23896.0,8.024e-05]
[1659294506532,0.40725733,23898.0,23895.0,0.070922]
[1659294507057,1.7038,23907.0,23898.0,0.05]
[1659294507268,0.40725733,23905.0,23901.0,0.05]
[1659294507498,0.300713,23904.0,23901.0,0.05]
[1659294507713,0.40725733,23905.0,23901.0,0.05]
[1659294507714,0.300713,23903.0,23901.0,0.05]
[1659294507953,0.40725733,23905.0,23901.0,0.05]
[1659294508195,0.40725733,23908.0,23901.0,0.114082]
[1659294508441,0.1,23914.0,23903.0,0.05]
[1659294508676,1.05,23906.0,23898.0,0.01264348]
[1659294508903,0.300713,23913.0,23902.0,0.24949669]
[1659294508904,0.55,23903.0,23902.0,0.24949669]
[1659294509145,1.29578958,23903.0,23896.0,0.00355216]
[1659294509373,0.82341691,23913.0,23897.0,0.43873733]
[1659294509374,0.82974348,23913.0,23897.0,0.43873733]
[1659294509595,0.08,23903.0,23898.0,0.76594583]
[1659294509837,0.08,23903.0,23899.0,0.73945033]
[1659294510058,0.08,23903.0,23902.0,0.6]
[1659294510291,0.08,23903.0,23902.0,0.300713]
[1659294510525,0.08,23903.0,23899.0,0.03148]
[1659294510740,0.08,23903.0,23900.0,0.40725733]
[1659294510967,0.03781925,23904.0,23898.0,0.40725733]
[1659294511195,0.44507658,23904.0,23898.0,0.032612]
[1659294511422,0.05,23908.0,23899.0,0.43873733]
[1659294511662,0.072,23904.0,23898.0,0.56386933]
[1659294511878,0.40725733,23903.0,23898.0,0.156612]
[1659294512102,0.300713,23902.0,23898.0,0.024]
[1659294512332,0.74507658,23901.0,23898.0,0.024]
[1659294512560,0.75797033,23900.0,23898.0,0.024]
[1659294512807,0.05,23898.0,23889.0,0.03149]
[1659294513023,0.05,23898.0,23888.0,0.001]
[1659294513024,0.40725733,23895.0,23888.0,0.001]
[1659294513264,0.300713,23894.0,23888.0,0.001]
[1659294513493,0.45725733,23893.0,23888.0,0.001]
[1659294513739,0.70797033,23892.0,23888.0,0.001]
[1659294513969,0.40725733,23891.0,23888.0,0.001]
[1659294514436,0.40725733,23891.0,23888.0,7.623e-05]
[1659294514437,0.800713,23890.0,23888.0,7.623e-05]
[1659294514684,0.300713,23889.0,23888.0,7.623e-05]
[1659294515129,0.40725733,23890.0,23888.0,7.623e-05]
[1659294515599,0.061,23889.0,23887.0,0.01803]
[1659294515857,0.46825733,23889.0,23887.0,0.01803]
[1659294516078,0.061,23889.0,23887.0,0.01803]
[1659294516303,0.061,23889.0,23888.0,0.70225733]
[1659294516542,0.061,23889.0,23888.0,0.73827818]
[1659294517015,0.1,23900.0,23888.0,0.73851089]
[1659294517016,1.15,23900.0,23888.0,0.73851089]
[1659294517261,0.05,23897.0,23888.0,0.40630789]
[1659294517521,0.70797033,23896.0,23888.0,0.00405056]
[1659294517752,0.40725733,23895.0,23888.0,0.00405056]
[1659294517988,0.300713,23894.0,23888.0,0.00405056]
[1659294518222,0.45725733,23895.0,23890.0,8.052e-05]
[1659294518443,0.40725733,23893.0,23888.0,0.00023271]
[1659294518668,0.40725733,23893.0,23890.0,0.020928]
[1659294518890,0.33538616,23892.0,23887.0,0.02116108]
[1659294519103,0.05,23891.0,23887.0,0.02116108]
[1659294519561,0.05,23891.0,23890.0,0.00378968]
[1659294519807,0.350713,23891.0,23890.0,0.00378968]
[1659294520747,0.350713,23891.0,23888.0,0.00384628]
[1659294520971,0.05,23891.0,23888.0,0.00384628]
[1659294521199,0.0533788,23891.0,23888.0,0.00384628]
[1659294521451,0.05,23891.0,23888.0,0.00392692]
[1659294521674,0.079,23891.0,23888.0,0.00392692]
[1659294521904,0.079,23891.0,23889.0,0.00042062]
[1659294522184,0.079,23891.0,23889.0,0.03303262]
[1659294522409,0.079,23891.0,23889.0,0.00042062]
[1659294522864,0.079,23891.0,23889.0,8.064e-05]
[1659294522865,0.03805196,23891.0,23889.0,8.064e-05]
[1659294523082,0.104644,23899.0,23891.0,0.020928]
[1659294523309,0.40725733,23898.0,23891.0,0.020928]
[1659294523570,0.359287,23900.0,23889.0,0.03269264]
[1659294523571,0.40725733,23896.0,23889.0,0.03269264]
[1659294523793,0.079,23891.0,23889.0,0.032612]
[1659294524017,0.06050118,23891.0,23890.0,0.00024209]
[1659294524234,0.06050118,23891.0,23888.0,0.00384628]
[1659294524459,0.06050118,23891.0,23889.0,8.064e-05]
[1659294524460,0.09855314,23891.0,23889.0,8.064e-05]
[1659294524685,0.06050118,23891.0,23890.0,0.020928]
[1659294524913,0.40725733,23896.0,23890.0,0.020928]
[1659294525189,0.300713,23895.0,23890.0,0.02117009]
[1659294525376,0.40725733,23895.0,23890.0,0.02117009]
[1659294525820,0.300713,23894.0,23890.0,0.02117009]
[1659294526045,0.03805196,23893.0,23890.0,0.020928]
[1659294526498,0.03805196,23893.0,23889.0,0.00384763]
[1659294526499,0.44530929,23893.0,23889.0,0.00384763]
[1659294526707,0.70797033,23892.0,23889.0,0.00384763]
[1659294526938,0.70797033,23891.0,23889.0,0.00378707]
[1659294527164,0.40725733,23890.0,23889.0,0.00378707]
[1659294527470,0.40725733,23890.0,23889.0,0.00384763]
[1659294527704,0.70797033,23890.0,23889.0,0.07984763]
[1659294528148,0.40725733,23890.0,23889.0,0.08048932]
[1659294528366,0.40725733,23890.0,23889.0,0.07978707]
[1659294528610,0.40725733,23895.0,23889.0,0.07978707]
[1659294528826,0.40725733,23895.0,23890.0,0.020926]
[1659294528827,0.300713,23894.0,23890.0,0.020926]
[1659294529086,0.300713,23893.0,23890.0,0.020855]
[1659294529547,0.300713,23892.0,23890.0,0.020855]
[1659294529788,0.40725733,23892.0,23890.0,0.020855]
[1659294530039,0.300713,23891.0,23890.0,0.020855]
[1659294530757,0.33876496,23891.0,23889.0,0.0038962]
[1659294530997,0.300713,23890.0,23889.0,0.0038962]
[1659294531261,0.45725733,23890.0,23887.0,0.02116108]
[1659294531489,0.70797033,23889.0,23887.0,0.02116108]
[1659294531716,0.300713,23888.0,23887.0,0.02116108]
[1659294531952,0.40725733,23889.0,23888.0,8.055e-05]
[1659294532906,0.44530929,23889.0,23888.0,8.055e-05]
[1659294533131,0.03805196,23889.0,23887.0,0.02116108]
[1659294533362,0.15466,23896.0,23888.0,0.00378783]
[1659294533582,0.70797033,23895.0,23888.0,0.00378783]
[1659294533841,0.019,23889.0,23888.0,0.07978783]
[1659294534514,0.019,23889.0,23888.0,0.08042954]
[1659294534956,0.05367316,23889.0,23888.0,0.08042954]
[1659294535211,0.33876496,23889.0,23888.0,0.00378783]
[1659294535425,0.300713,23893.0,23888.0,0.00442954]
[1659294535643,0.70797033,23892.0,23888.0,0.08142954]
[1659294535858,0.40725733,23892.0,23888.0,0.08142954]
[1659294536333,0.03805196,23891.0,23888.0,0.08142954]
[1659294536570,0.40725733,23892.0,23888.0,0.08142954]
[1659294536798,1.05725733,23892.0,23889.0,6.04e-05]
[1659294537030,0.300713,23891.0,23889.0,6.04e-05]
[1659294537249,0.33876496,23890.0,23889.0,6.04e-05]
[1659294537471,0.03805196,23890.0,23889.0,6.04e-05]
[1659294537740,0.08,23891.0,23888.0,0.00378783]
[1659294538179,0.08,23891.0,23888.0,0.00386847]
[1659294538409,0.03805196,23890.0,23888.0,0.00386847]
[1659294538632,0.08,23891.0,23888.0,0.00386847]
[1659294538869,0.08,23891.0,23889.0,0.40725733]
[1659294539099,1.2437,23903.0,23890.0,0.535739]
[1659294539343,0.40725733,23902.0,23891.0,0.71464565]
[1659294539572,0.40725733,23902.0,23891.0,0.40725733]
[1659294540568,0.40725733,23901.0,23893.0,0.020923]
[1659294541013,0.300713,23900.0,23890.0,0.153536]
[1659294541234,0.51189333,23901.0,23890.0,0.153536]
[1659294541235,0.40725733,23899.0,23890.0,0.153536]
[1659294541687,0.45725733,23899.0,23890.0,0.153536]
[1659294541927,0.40725733,23898.0,23890.0,0.153536]
[1659294542374,0.300713,23897.0,23890.0,0.153536]
[1659294542606,0.45725733,23897.0,23890.0,0.153536]
[1659294542885,0.40725733,23897.0,23890.0,0.153536]
[1659294543355,0.40725733,23897.0,23889.0,0.00374124]
[1659294543578,0.40725733,23897.0,23889.0,0.00368085]
[1659294543579,0.45725733,23897.0,23889.0,0.00368085]
[1659294543817,0.40725733,23896.0,23889.0,0.00368085]
[1659294544046,0.350713,23895.0,23889.0,0.00368085]
[1659294544273,0.70797033,23894.0,23889.0,6.039e-05]
[1659294544496,0.40725733,23893.0,23889.0,6.039e-05]
[1659294545192,0.03805196,23892.0,23889.0,6.039e-05]
[1659294545463,0.44530929,23892.0,23887.0,0.00472333]
[1659294545695,0.40725733,23891.0,23889.0,0.072]
[1659294545927,0.40725733,23891.0,23890.0,0.00064167]
[1659294546824,0.40725733,23891.0,23889.0,0.072]
[1659294547086,0.40725733,23891.0,23888.0,0.020927]
[1659294547772,0.40725733,23891.0,23889.0,0.06]
[1659294548028,0.44530929,23891.0,23889.0,0.06]
[1659294548290,0.44530929,23891.0,23889.0,0.06359813]
[1659294548959,0.40725733,23891.0,23889.0,0.00627254]
[1659294549649,0.40725733,23891.0,23889.0,0.0706682]
[1659294549890,0.40725733,23891.0,23889.0,0.07327254]
[1659294550104,0.40725733,23891.0,23889.0,0.07059813]
[1659294550326,0.40725733,23891.0,23889.0,0.0706682]
[1659294551048,0.40725733,23891.0,23889.0,0.0036682]
[1659294551049,0.350713,23890.0,23889.0,0.0036682]
[1659294551276,0.75797033,23890.0,23889.0,0.00359813]
[1659294551517,0.75797033,23890.0,23889.0,0.00350461]
[1659294551745,0.75797033,23890.0,23889.0,0.07150461]
[1659294552225,0.80797033,23890.0,23889.0,0.07150461]
[1659294552463,0.84602229,23890.0,23889.0,0.07150461]
[1659294552925,0.79602229,23890.0,23889.0,0.07150461]
[1659294553234,0.79602229,23890.0,23889.0,0.00350461]
[1659294553346,0.1731,23889.0,23886.0,0.001]
[1659294553579,1.75797033,23888.0,23883.0,0.001]
[1659294553824,0.40725733,23886.0,23883.0,0.001]
[1659294554053,0.33876496,23885.0,23883.0,0.001]
[1659294554290,1.050713,23884.0,23883.0,0.001]
[1659294554543,1.05,23883.0,23881.0,0.0021]
[1659294554757,0.70797033,23882.0,23881.0,0.0021]
[1659294554973,0.74602229,23882.0,23881.0,0.0021]
[1659294555189,1.04602229,23882.0,23878.0,0.00312002]
[1659294555431,1.48797033,23881.0,23878.0,0.00312002]
[1659294555668,0.05,23876.0,23866.0,0.70366402]
[1659294555933,0.40725733,23875.0,23867.0,0.03152]
[1659294556169,0.1,23875.0,23865.0,0.0021]
[1659294556410,0.40725733,23869.0,23865.0,0.0021]
[1659294556627,0.44530929,23868.0,23865.0,0.0021]
[1659294556858,0.03805196,23868.0,23865.0,0.0021]
[1659294557082,0.03805196,23868.0,23867.0,0.00360234]
[1659294557315,0.44530929,23868.0,23867.0,0.00360234]
[1659294557546,1.04602229,23868.0,23865.0,0.001]
[1659294557781,0.40725733,23866.0,23865.0,0.001]
[1659294558010,0.350713,23866.0,23865.0,0.001]
[1659294558305,0.350713,23866.0,23861.0,0.001]
[1659294558306,0.84602229,23866.0,23861.0,0.001]
[1659294558546,0.05,23863.0,23861.0,0.001]
[1659294558778,1.45797033,23862.0,23861.0,0.00132141]
[1659294559011,0.65,23861.0,23856.0,0.001]
[1659294559255,2.06173033,23860.0,23856.0,0.001]
[1659294559488,1.1,23857.0,23856.0,0.001]
[1659294559759,0.75797033,23857.0,23856.0,0.001]
[1659294560002,0.041,23861.0,23856.0,0.04871]
[1659294560244,0.041,23861.0,23857.0,0.43878733]
[1659294560479,0.041,23861.0,23858.0,0.300713]
[1659294560704,0.041,23861.0,23858.0,0.032612]
[1659294560933,0.3125,23870.0,23860.0,0.532612]
[1659294561157,0.40725733,23869.0,23861.0,0.48878733]
[1659294561378,0.209532,23876.0,23861.0,0.48878733]
[1659294561379,0.03120394,23885.0,23870.0,0.05]
[1659294561617,0.40725733,23884.0,23871.0,1.04324033]
[1659294561850,0.40725733,23884.0,23872.0,0.70797033]
[1659294562107,0.40725733,23884.0,23873.0,0.73948033]
[1659294562327,0.31489,23890.0,23873.0,0.40725733]
[1659294562328,0.40725733,23883.0,23873.0,0.40725733]
[1659294562553,0.40725733,23883.0,23874.0,0.03151]
[1659294563473,0.40733718,23883.0,23874.0,0.03151]
[1659294563793,0.40725733,23882.0,23874.0,0.03151]
[1659294564015,0.40725733,23882.0,23873.0,0.40725733]
[1659294564236,0.40725733,23882.0,23874.0,0.03151]
[1659294564481,0.40725733,23882.0,23874.0,0.40725733]
[1659294564702,0.40725733,23882.0,23875.0,0.332223]
[1659294564931,0.40725733,23882.0,23876.0,0.300713]
[1659294565160,0.40725733,23882.0,23875.0,0.03151]
[1659294565373,0.40725733,23882.0,23874.0,0.03151]
[1659294565907,0.40725733,23882.0,23874.0,0.43876733]
[1659294566131,0.40725733,23882.0,23875.0,0.300713]
[1659294566342,0.40725733,23882.0,23876.0,0.300713]
[1659294566568,0.40725733,23882.0,23876.0,0.020936]
[1659294566802,0.40725733,23882.0,23877.0,0.332281]
[1659294567027,0.40725733,23882.0,23876.0,0.020936]
[1659294567246,0.40725733,23882.0,23876.0,0.300771]
[1659294567461,0.40725733,23882.0,23874.0,0.43876733]
[1659294567694,0.40725733,23882.0,23875.0,0.300771]
[1659294567695,0.44025733,23882.0,23875.0,0.300771]
[1659294567920,0.44025733,23882.0,23876.0,0.353218]
[1659294568144,0.44025733,23882.0,23875.0,0.03151]
[1659294568644,0.44025733,23882.0,23874.0,0.43876733]
[1659294568872,0.40725733,23882.0,23874.0,0.43876733]
[1659294569327,0.40725733,23882.0,23875.0,0.300771]
[1659294569559,6.944e-05,23883.0,23878.0,0.05]
[1659294569797,6.944e-05,23883.0,23882.0,0.5]
[1659294570034,6.944e-05,23883.0,23882.0,0.933383]
[1659294570508,6.944e-05,23883.0,23882.0,0.433383]
[1659294570730,6.944e-05,23883.0,23882.0,0.132612]
[1659294570964,0.21812991,23894.0,23882.0,0.132612]
[1659294571188,0.40725733,23891.0,23882.0,0.132612]
[1659294571447,0.45725733,23891.0,23882.0,0.132612]
[1659294571669,0.40725733,23890.0,23882.0,0.132612]
[1659294572140,0.45725733,23890.0,23882.0,0.132612]
[1659294572364,7.078e-05,23888.0,23882.0,0.132612]
[1659294572583,0.40725733,23887.0,23882.0,0.132612]
[1659294572803,0.40725733,23887.0,23880.0,0.052432]
[1659294573039,0.00028309,23892.0,23887.0,0.05]
[1659294573277,1.0,23899.0,23891.0,0.182612]
[1659294573572,1.0,23899.0,23892.0,0.73951833]
[1659294573801,1.0,23899.0,23895.0,0.05]
[1659294574030,1.40725733,23899.0,23896.0,0.05]
[1659294574257,0.44030929,23898.0,23891.0,0.03149]
[1659294574500,0.44030929,23898.0,23891.0,0.40725733]
[1659294574746,0.44030929,23898.0,23892.0,0.300771]
[1659294574962,0.44030929,23898.0,23891.0,0.40725733]
[1659294575222,0.44030929,23898.0,23892.0,0.300771]
[1659294575448,0.40725733,23897.0,23888.0,0.03149]
[1659294575670,0.55725733,23897.0,23887.0,0.00345493]
[1659294575905,0.70802833,23896.0,23887.0,0.00345493]
[1659294576166,0.15,23897.0,23887.0,0.00345493]
[1659294576167,0.55725733,23894.0,23887.0,0.00345493]
[1659294576397,0.70802833,23893.0,23887.0,0.00345493]
[1659294576626,0.70802833,23892.0,23887.0,0.00345493]
[1659294576873,0.40725733,23891.0,23887.0,0.00345493]
[1659294577086,0.0033788,23890.0,23887.0,0.00345493]
[1659294577319,0.40725733,23889.0,23887.0,0.00345493]
[1659294577774,0.40725733,23889.0,23887.0,0.00845493]
[1659294578431,0.4403093,23889.0,23887.0,0.00845493]
[1659294578714,0.4403093,23889.0,23887.0,0.00345493]
[1659294579648,0.40725733,23889.0,23887.0,0.00345493]
[1659294580107,0.40725733,23889.0,23888.0,0.00339539]
[1659294580560,0.4403093,23889.0,23888.0,0.00339539]
[1659294581275,0.40725733,23889.0,23888.0,0.00815323]
[1659294581510,0.40725733,23889.0,23888.0,0.00339539]
[1659294582618,0.4403093,23889.0,23888.0,0.00339539]
[1659294583119,0.40725733,23889.0,23888.0,0.00339539]
[1659294583574,0.7410803,23889.0,23888.0,0.00339539]
[1659294583845,0.8510803,23889.0,23888.0,0.00339539]
[1659294584297,0.85081906,23889.0,23888.0,0.00339539]
[1659294584979,0.85081906,23889.0,23888.0,0.00839539]
[1659294584980,0.76802833,23889.0,23888.0,0.00839539]
[1659294585198,0.40725733,23889.0,23888.0,0.00839539]
[1659294585447,0.4369305,23889.0,23888.0,0.00339539]
[1659294585668,0.4559305,23889.0,23887.0,0.00130157]
[1659294586334,0.42625733,23889.0,23887.0,0.00130157]
[1659294586557,0.41063613,23888.0,23887.0,0.0034282]
[1659294586821,0.40725733,23888.0,23887.0,0.0034282]
[1659294587042,0.019,23889.0,23887.0,0.0034282]
[1659294587272,0.019,23889.0,23888.0,0.005]
[1659294587273,0.01906172,23889.0,23888.0,0.005]
[1659294587495,6.172e-05,23889.0,23887.0,0.0034282]
[1659294587723,0.40725733,23888.0,23887.0,0.0034282]
[1659294589792,0.70802833,23888.0,23887.0,8.2e-06]
[1659294590025,0.7877015,23888.0,23887.0,8.2e-06]
[1659294590250,1.1691915,23888.0,23887.0,8.2e-06]
[1659294590474,1.1691915,23888.0,23887.0,0.00338395]
[1659294591462,0.7877015,23888.0,23887.0,0.00338395]
[1659294591686,0.8611915,23888.0,23887.0,0.00338395]
[1659294591915,1.1611915,23888.0,23887.0,0.00338395]
[1659294592642,1.1611915,23888.0,23887.0,1.395e-05]
[1659294593129,1.1191915,23888.0,23887.0,1.395e-05]
[1659294593598,1.1691915,23888.0,23878.0,0.020933]
[1659294593810,0.40725733,23887.0,23878.0,0.020933]
[1659294594553,0.300771,23886.0,23878.0,0.020933]
[1659294594764,0.40725733,23885.0,23878.0,0.020933]
[1659294595435,0.40725733,23885.0,23878.0,0.0241715]
[1659294595682,0.40725733,23885.0,23878.0,0.0451065]